Cogmind - Beta 16 @@@ ROGUE MODE // 2025.12.05 @ 04:00:00 Player: Red Box Result: Destroyed by UY-ZJW(R) with Subdweller Beam Cannon Performance ------------- Evolutions (0) 0 Regions Visited (3) 600 Robots Destroyed (28) 140 Value Destroyed (548) 548 Prototype IDs (17) 340 Alien Tech Used (0) 0 Bonus (0) 0 TOTAL SCORE: 1628 Bonus ------- None Cogmind --------- Core Integrity 0/250 Matter 277/300 Energy 170/170 System Corruption 3% Temperature Cool (9) Movement Walking (260) Ox2 Location -10/Subcaves Parts ------- > --- POWER (1) -------- Makeshift Power Source > --- PROPULSION (2) --- Aluminum Leg (fused) Aluminum Leg > --- UTILITY (2) ------ Heat Sink High-capacity Storage Unit > --- WEAPON (2) ------- Subdweller Laser Subdweller Laser > --- INVENTORY (20) --- Subdweller Power Source Light Treads Compact Wheel Subdweller Monowheel Subdweller Monowheel High-capacity Battery (250) High-capacity Matter Pod (200) Improved Terrain Scanner Light Armor Plating Riot Gun Riot Gun Riot Gun Powered Cannon Subdweller Machine Gun Subdweller Machine Gun Heavy Battle Rifle Makeshift Shrapnel Gun Battle Cannon Datajack Peak State ------------ > --- POWER ------------ Makeshift Power Source > --- PROPULSION ------- Aluminum Leg Aluminum Leg > --- UTILITY ---------- Heat Sink High-capacity Storage Unit > --- WEAPON ----------- Subdweller Laser Subdweller Laser > --- INVENTORY -------- Subdweller Power Source Light Treads Compact Wheel Subdweller Monowheel Subdweller Monowheel High-capacity Battery High-capacity Matter Pod Improved Terrain Scanner Light Armor Plating Riot Gun Riot Gun Riot Gun Powered Cannon Subdweller Machine Gun Subdweller Machine Gun Heavy Battle Rifle Makeshift Shrapnel Gun Battle Cannon Datajack [Rating: 17] Favorites ----------- Power Light Nuclear Core Engine Makeshift Power Source Power Core Light Nuclear Core Propulsion Aluminum Leg Treads Light Treads Leg Aluminum Leg Wheel Wheel Utility Heat Sink Device Heat Sink Storage High-capacity Storage Unit Protection Light Armor Plating Weapon Subdweller Laser Energy Gun Subdweller Laser Special Weapon Mining Laser Special Melee Weapon Datajack Build | -11 -10 -10 -10 ------- Run | Yrd Mat Min Sub Slots Evolved . | . . . . Power . | . . . . Propulsion . | . . . . Utility . | . . . . Weapon . | . . . . Parts Attached 32 | 7 11 11 3 Power 5 | 1 2 1 1 Engine 4 | 1 2 . 1 Core 1 | . . 1 . Reactor . | . . . . Propulsion 11 | 2 4 5 . Treads 1 | . . 1 . Leg 8 | 2 4 2 . Wheel 2 | . . 2 . Hover . | . . . . Flight . | . . . . Utility 7 | 2 2 3 . Device 4 | 1 2 1 . Storage 2 | 1 . 1 . Processor . | . . . . Hackware . | . . . . Protection 1 | . . 1 . Artifact . | . . . . Weapon 9 | 2 3 2 2 Energy Gun 7 | 2 2 1 2 Energy Cannon . | . . . . Ballistic Gun . | . . . . Ballistic Cannon . | . . . . Launcher . | . . . . Special Weapon 1 | . 1 . . Impact Weapon . | . . . . Slashing Weapon . | . . . . Piercing Weapon . | . . . . Special Melee Weapon 1 | . . 1 . Unidentified Prototypes . | . . . . Parts Lost 7 | . 1 6 . Power 1 | . . 1 . Propulsion 2 | . . 2 . Utility 2 | . . 2 . Weapon 2 | . 1 1 . Highest Loss Streak 5 | . 1 5 . To Critical Strikes . | . . . . Average Backups 12 | 3 7 9 17 Power . | . . . . Propulsion 3 | 2 3 2 3 Utility 3 | . 2 4 4 Weapon 4 | . 1 1 7 Tool/Special . | . . . . Unused Backups 21 | . 2 . 19 Power 1 | . . . 1 Propulsion 5 | . 2 . 3 Utility 4 | . . . 4 Weapon 11 | . . . 11 Tool/Special . | . . . . Average Slot Usage (%) 99 | . 100 97 99 Engine 9 | . 14 5 8 Core 4 | . . 7 5 Leg 27 | . 28 26 28 Device 13 | . 14 13 14 Storage 14 | . 14 14 14 Energy Gun 26 | . 26 27 26 Special Weapon 1 | . 1 . 1 Peak Build Rating 17 | 9 10 10 17 Average Rating 11 | 5 8 8 15 On Entrance 6 | . 9 8 10 Avg Prop Armor Cover (%) 12 | . . 12 . Naked Turns . | . . . . Heaviest Build 54 | 12 16 49 54 Greatest Support 20 | 20 20 20 20 Greatest Overweight (x) 3 | 3 . 2 2 Average Overweight (x) . | . . . 2 Largest Inventory Capacity 20 | 8 8 20 20 Average Capacity 15 | 7 8 12 20 Most Carried 20 | 7 8 12 20 Average Carried 13 | 3 7 9 18 Final Capacity 20 | 8 8 20 20 Final Carried 20 | 7 8 12 20 Class Distribution -------------------- 74% | Scavenger-Mutant 25% | Mutant Dominant Class ---------------- Mutant | -10/Materials Scavenger-Mutant | -10/Mines Scavenger-Mutant | -10/Subcaves Resources | -11 -10 -10 -10 ----------- Run | Yrd Mat Min Sub Matter Collected 933 | 270 333 164 166 Remotely . | . . . . Salvage Created 925 | 123 499 213 90 Parts 59 | 12 37 6 4 Haulers Intercepted 2 | . 2 . . Recyclers Shooed . | . . . . Parts Field Recycled . | . . . . Retrieved Matter . | . . . . Parts Self-Destructed 8 | . . . 8 Prevented . | . . . . Parts Restored . | . . . . Kills | -11 -10 -10 -10 ------- Run | Yrd Mat Min Sub Combat Hostiles Destroyed 24 | . 12 10 2 Guns 23 | . 11 10 2 Classes Destroyed 8 | 2 4 1 1 Tunneler 4 | 4 . . . Hauler 2 | . 2 . . Recycler 1 | 1 . . . Watcher 2 | . 2 . . Swarmer 9 | . 6 3 . Grunt 8 | . 6 2 . Subdweller 2 | . . . 2 Assembled 5 | . . 5 . Best Kill Streak 3 | 3 3 3 2 Combat Bots Only 3 | . 3 3 2 Max Kills in Single Turn 1 | 1 1 1 1 Gunslinging . | . . . . Exploded . | . . . . Melee . | . . . . Uniques/NPCs Destroyed . | . . . . Combat | -11 -10 -10 -10 -------- Run | Yrd Mat Min Sub Hostile Shots Fired 108 | . 63 41 4 Missed 19 | . 10 7 2 Hits 89 | . 53 34 2 Melee 8 | . . 8 . Projectile 81 | . 53 26 2 Critical Strikes 1 | . . 1 . Damage Taken 1172 | . 518 602 52 Core 253 | . 118 109 26 Absorbed by Shields . | . . . . Core Remaining (%) 100 | 100 . . . Volleys Fired 128 | 11 65 28 24 Largest 2 | 2 2 2 2 Hottest 120 | 90 115 115 120 Shots Fired 229 | 22 125 44 38 Gun 211 | 22 120 44 25 Cannon . | . . . . Launcher . | . . . . Special 18 | . 5 . 13 Kinetic . | . . . . Thermal 203 | 22 99 44 38 Explosive . | . . . . Electromagnetic 26 | . 26 . . Robot Hit Streak 8 | 8 7 7 5 Robot Miss Streak 8 | 1 8 4 1 Penetration Max . | . . . . Secondary Targets 1 | . . 1 . Max Gunslinging Chain 1 | . . 1 . Shots Hit Robots 109 | 17 60 26 6 Core Hits 44 | 6 19 15 4 Critical Kills . | . . . . Critical Parts Destroyed . | . . . . Critical Strikes 7 | 1 1 5 . Burn 7 | 1 1 5 . Melee Attacks 1 | . . 1 . Impact . | . . . . Slashing . | . . . . Piercing . | . . . . Sneak Attacks . | . . . . Combat Hostiles . | . . . . Follow-up Attacks . | . . . . Damage Inflicted 1520 | 211 835 355 119 Guns 1519 | 211 834 355 119 Cannons . | . . . . Explosions . | . . . . Melee . | . . . . Ramming 1 | . 1 . . Kinetic . | . . . . Thermal 1289 | 211 604 355 119 Explosive . | . . . . Electromagnetic 230 | . 230 . . Impact . | . . . . Slashing . | . . . . Piercing . | . . . . Highest Corruption 3 | . 3 3 3 Average Corruption 2 | . 2 3 3 Corruption Purged . | . . . . Corruption Blocked . | . . . . Effects 107 | . 21 27 59 Message Errors 26 | . 5 5 16 Matter Fused 24 | . 2 8 14 Heat Flow Errors 14 | . 4 3 7 Energy Discharges 11 | . 2 4 5 Parts Fused 1 | . . 1 . Data Loss (minor) 12 | . 5 3 4 Data Loss (major) 7 | . 1 . 6 Misfires 6 | . 1 1 4 Alerts 4 | . . 2 2 Weapon Failures 2 | . 1 . 1 Overload Shots . | . . . . Overflow Damage . | . . . . Projectiles . | . . . . Explosions . | . . . . Melee . | . . . . Knockbacks . | . . . . Impact . | . . . . Kinetic . | . . . . Secondary . | . . . . Self-Inflicted Damage . | . . . . Shots . | . . . . Rammed . | . . . . Targets Rammed 1 | . 1 . . Kicked 1 | . 1 . . Crushed . | . . . . Highest Temperature 456 | 180 456 232 211 Average Temperature 95 | 69 101 90 86 Received Heat Transfer 249 | . 195 36 18 Effects 3 | . 3 . . Shutdowns 1 | . 1 . . Energy Bleed 1 | . 1 . . Interference 1 | . 1 . . Siege Activations . | . . . . Martial Activations . | . . . . Shielding Activations . | . . . . Robots Disrupted . | . . . . Combat Hostiles . | . . . . Robots Corrupted . | . . . . Combat Hostiles . | . . . . Parts Fried . | . . . . Impact Corruptions . | . . . . Robots Melted 1 | . 1 . . Combat Hostiles 1 | . 1 . . Parts Melted 4 | 2 2 . . Heat Transferred 3722 | 620 1656 1296 150 Parts Sabotaged . | . . . . Parts Stolen . | . . . . Parts Stripped . | . . . . Power Chain Reactions . | . . . . Alert | -11 -10 -10 -10 ------- Run | Yrd Mat Min Sub Maximum Alert Level . | . . . . Low Security (%) 100 | 100 100 100 . Level 1 . | . . . . Level 2 . | . . . . Level 3 . | . . . . Level 4 . | . . . . Level 5 . | . . . . High Security . | . . . . Max Security . | . . . . Peak Influence 100 | 15 100 62 . Initial 9 | . . 9 . Average 14 | 2 21 7 . Influence Increases 575 | 25 430 120 . Destroy 0b10 Robot/C 340 | . 240 100 . Destroy 0b10 Robot/NC 45 | 25 20 . . Destroy Leader 78 | . 58 20 . Successful Hack 31 | . 31 . . Select Force Hacks 60 | . 60 . . Disable Machine 15 | . 15 . . Destroy Structure 6 | . 6 . . Influence Decreases 575 | 25 404 146 . Entered New Map 17 | . . 17 . Time Decay 558 | 25 404 129 . Squads Dispatched 5 | . 5 . . Investigation 5 | . 5 . . Extermination . | . . . . Reinforcement . | . . . . Assault . | . . . . Garrison . | . . . . Intercept . | . . . . Searches Triggered . | . . . . Construction Impeded . | . . . . Haulers Reinforced . | . . . . Active Scanning Responses . | . . . . Cargo Convoy Interrupts . | . . . . Stealth | -11 -10 -10 -10 --------- Run | Yrd Mat Min Sub Distress Signals 1 | . 1 . . Communications Jammed . | . . . . Distress Signals . | . . . . Times Spotted 38 | . 24 10 4 Peak Tracking Total 3 | . 3 3 2 Tactical Retreats . | . . . . Traps | -11 -10 -10 -10 ------- Run | Yrd Mat Min Sub Traps Triggered 2 | . 2 . . Indirectly . | . . . . Trap Hack Attempts . | . . . . Triggered . | . . . . Disarmed . | . . . . Reprogrammed . | . . . . Reused 1 | . . . 1 Traps Extracted . | . . . . Installed 1 | . . . 1 Triggered . | . . . . Most Traps Carried 1 | . . . 1 Machines | -11 -10 -10 -10 ---------- Run | Yrd Mat Min Sub Machines Disabled 2 | . 1 . 1 Max in Single Turn 1 | . 1 . 1 Machines Repaired . | . . . . Machines Dismantled . | . . . . Machines Sabotaged . | . . . . Overloaded Fab Kills . | . . . . Hacking | -11 -10 -10 -10 --------- Run | Yrd Mat Min Sub Machines Accessed 12 | . 11 . 1 Terminals 8 | . 8 . . Fabricators . | . . . . Repair Stations 1 | . 1 . . Recycling Units 2 | . 2 . . Scanalyzers . | . . . . Garrison Access . | . . . . Total Hacks 56 | . 55 . 1 Successful 38 | . 37 . 1 Failed 18 | . 18 . . Catastrophic . | . . . . Database Lockouts . | . . . . Manual 40 | . 40 . . Terminals 40 | . 40 . . Fabricators . | . . . . Repair Stations 4 | . 4 . . Recycling Units 11 | . 11 . . Scanalyzers . | . . . . Garrison Access . | . . . . Terminal Hacks 12 | . 11 . 1 Robot Analysis 6 | . 6 . . Prototype ID Bank 2 | . 2 . . Terminal Index 1 | . 1 . . Locate Traps 2 | . 2 . . Proto ID Catalog 1 | . . . 1 Fabricator Hacks . | . . . . Repair Station Hacks 1 | . 1 . . Scan Component 1 | . 1 . . Recycling Unit Hacks 2 | . 2 . . Retrieve Components 2 | . 2 . . Scanalyzer . | . . . . Garrison Access Hacks . | . . . . Unauthorized Hacks 23 | . 23 . . Terminals 15 | . 15 . . Track 3 | . 3 . . Assimilate 1 | . 1 . . Botnet 5 | . 5 . . Operators 1 | . 1 . . Skim 5 | . 5 . . Fabricators . | . . . . Repair Stations . | . . . . Recycling Units 8 | . 8 . . Reject 2 | . 2 . . Recyclers 2 | . 2 . . Mask 2 | . 2 . . Tunnel 2 | . 2 . . Scanalyzers . | . . . . Garrison Access . | . . . . Data Cores Recovered . | . . . . Used . | . . . . Hacking Detections 10 | . 10 . . Full Trace Events 3 | . 3 . . Feedback Events . | . . . . Feedback Blocked . | . . . . Robot Schematics Acquired . | . . . . Robots Built . | . . . . Authchips . | . . . . Time . | . . . . Total Robot Build Rating . | . . . . Part Schematics Acquired . | . . . . Parts Built . | . . . . Authchips . | . . . . Time . | . . . . Total Part Build Rating . | . . . . Part Studies Acquired . | . . . . Parts Repaired . | . . . . Time . | . . . . Parts Recycled . | . . . . Recycled Matter . | . . . . Retrieved Matter . | . . . . Retrieved Components 14 | . 14 . . Parts Scanalyzed . | . . . . Part Schematics Acquired . | . . . . Parts Damaged . | . . . . Bothacking | -11 -10 -10 -10 ------------ Run | Yrd Mat Min Sub Used RIF Installer . | . . . . Robots Hacked 1 | . . 1 . Non-combat . | . . . . Combat 1 | . . 1 . Robot Hacks Applied 1 | . . 1 . parse_system 1 | . . 1 . Relay Couplers Released . | . . . . Fabnet Peak Effective % . | . . . . Robots Rewired . | . . . . Allies Hacked . | . . . . Hacks Repelled . | . . . . Allies | -11 -10 -10 -10 -------- Run | Yrd Mat Min Sub Total Allies 4 | . 1 3 . Largest Group 4 | . 1 4 4 Highest-Rated Group 50 | . 10 50 50 Highest-Rated Ally 16 | . 10 16 16 Total Orders 13 | . 5 3 5 STAY 8 | . 3 2 3 FOLLOW 5 | . 2 1 2 Ally Attacks 4 | . . . 4 Total Damage 45 | . . . 45 Kills . | . . . . Allies Corrupted . | . . . . Allies Melted . | . . . . Intel | -11 -10 -10 -10 ------- Run | Yrd Mat Min Sub Active Infowar (turns) 903 | 9 894 . . Terrain 903 | 9 894 . . Robot Analysis Total 5 | . 5 . . Derelict Logs Recovered 2 | . . 2 . Drone Launches . | . . . . Drone Recoveries . | . . . . Exploration | -11 -10 -10 -10 ------------- Run | Yrd Mat Min Sub Turns Passed 6023 | 128 1523 1433 2939 Spaces Moved 2899 | 66 969 790 1074 Core 11 | 11 . . . Treads . | . . . . Legs 2870 | 55 969 772 1074 Wheels 18 | . . 18 . Hover . | . . . . Flight . | . . . . Fastest Speed 50 | 50 120 80 260 Average Speed 182 | 118 120 157 260 Slowest Speed 260 | 200 120 260 260 Overloaded Moves . | . . . . Propulsion Burnouts . | . . . . Robots Hopped . | . . . . Potential Cave-ins . | . . . . Cave-ins Triggered . | . . . . Exploration Rate (%) 60 | 4 100 99 40 Regions Visited 3 Branch Regions 2 Pre-discovered Areas 3 | . 2 1 . Known Exits Taken 2 | . 1 1 . Unknown Exits Taken 1 | 1 . . . Scrap Searched 3 | . . 1 2 Spaces Dug 5 | . 5 . . Terrain Destroyed 5 | . 5 . . Melee . | . . . . Projectile 5 | . 5 . . AOE . | . . . . Terrain Rammed . | . . . . Walls Destroyed . | . . . . Machines Disabled . | . . . . Actions | -11 -10 -10 -10 --------- Run | Yrd Mat Min Sub Total 3382 | 90 1197 934 1161 Wait 252 | . 133 92 27 Move 2896 | 65 968 789 1074 Hop . | . . . . Pick Up 39 | 7 7 9 16 Fast Attach 11 | 7 . 3 1 Attach 9 | . 2 5 2 Detach . | . . . . Swap 21 | . 10 5 6 Drop 23 | . 11 2 10 Fire 128 | 11 65 28 24 Melee 1 | . . 1 . Ram . | . . . . Kick 1 | . 1 . . Crush . | . . . . Escape Stasis . | . . . . Rewire . | . . . . Trap 1 | . . . 1 Miscellaneous . | . . . . Route ------- -11/Scrapyard -10/Materials (discovered 6 exits: *Mat x3 / *Min x2 / *Sub) -10/Mines (discovered 4 exits: *Mat x2 / [*Exi] / *Sub) -10/Subcaves (discovered 3 exits: [*Mat] / Rec / [*Scr]) History --------- Turn | Location | Event 43 | -11/Scrapyard | Discovered new exit (range 15) 129 | -11/Scrapyard | Entered Materials 312 | -10/Materials | Build established: Mutant 388 | -10/Materials | Discovered new exit (range 11) 586 | -10/Materials | Loaded intel: 17 trap records 618 | -10/Materials | Learned 4 Subcaves zone layouts 636 | -10/Materials | Discovered new exit (range 12) 652 | -10/Materials | Learned location of 1 exit from Recycling 653 | -10/Materials | Identified exit to Subcaves 653 | -10/Materials | Identified exit to Mines 653 | -10/Materials | Identified exit to Materials 671 | -10/Materials | Learned Storage trap positions 1652 | -10/Materials | Entered Mines 1652 | -10/Mines | Accompanied by 1 ally 1671 | -10/Mines | Assembled infested the area 1683 | -10/Mines | Discovered exit to Subcaves (range 10) 1723 | -10/Mines | Discovered exit to Materials (range 3) 1768 | -10/Mines | Learned location of 1 exit from Materials 1783 | -10/Mines | Discovered exit to Materials (range 8) 1887 | -10/Mines | Deemed a non-threat by the Exiles lab entrance 1887 | -10/Mines | Discovered new exit (range 5) 1907 | -10/Mines | Build established: Scavenger-Mutant 2031 | -10/Mines | Core integrity fell below 50% 2064 | -10/Mines | Core integrity fell below 20% 2092 | -10/Mines | Lost 5 parts (2n2u1w) 2159 | -10/Mines | Learned location of Storage (-9) 2633 | -10/Mines | Assisted by bots powering up and referring to "LRC-V3" 3085 | -10/Mines | Entered Subcaves 3085 | -10/Subcaves | Accompanied by 4 allies 3086 | -10/Subcaves | Approached by a straggling Scientist 3086 | -10/Subcaves | Identified exit to Recycling 3585 | -10/Subcaves | A swath of the cavern ceiling suddenly collapsed 3819 | -10/Subcaves | Visited 4L-MR0's lab 3853 | -10/Subcaves | Found Powered Cannon 3967 | -10/Subcaves | Shifting Twisted Machinery released Riot Gun 3971 | -10/Subcaves | Shifting Twisted Machinery released Sub. Monowheel 4010 | -10/Subcaves | Shifting Twisted Machinery released Hvy. Battle Rifle 4026 | -10/Subcaves | Shifting Twisted Machinery released Riot Gun 4123 | -10/Subcaves | Lost 4 allies 4245 | -10/Subcaves | A swath of the cavern ceiling suddenly collapsed 5944 | -10/Subcaves | Discovered new exit (range 15) 6024 | -10/Subcaves | Destroyed by UY-ZJW(R) with Subdweller Beam Cannon Last Messages --------------- 05535_ 5Y-MZK(u) deconstructs Twisted Machinery. 05560_ 3Q1IJVRY7JVH|FS2NOGOVM 05670_ System corrupted: Matter fused (-8). 05710_ System corrupted: Energy discharge (-45). 05746_ System corrupted: Substantial component data lost. 05872_ System corrupted: FCS attempts to trigger Sub. Laser. 05872_ System corrupted: Sub. Laser misfires. 05892_ System corrupted: Matter fused (-9). 05935_ System corrupted: Matter fused (-6). 05944_ EXIT=FOUND 05994_ System corrupted: Component data lost. 06011_ System corrupted: Substantial component data lost. Map ----- +----------------------------------------------------+ | ??????????????????????###### #####?####???????? | | ??????????????????????????## #????????????????? | | ??????????????????????????# #????????????????? | | ??????????????????????????# ####????????????????? | | ??????????????????????????## #???????????????????? | | ???????????????????????????###???????????????????? | | ?????????????????????????????????????????????????? | | ?????????????????????????????????????????????????? | | ?????????????????????????????????????????????????? | | ?????????????????????????????????????????????????? | | ?????????????????????????????????????????????????? | | ?????????????????????????????????????????????????? | | ?????????????????????????????????????????????????? | | ?????????????????????????????????????????????????? | | ?????????????????????????????????????????????????? | | ?????????????????????????????????????????????????? | | ?????????????????????????????????????????????????? | | ?????????????????????????????????????????????????? | | ?????????????????????????????????????????????????? | | ????????????????????????????????#????????????????? | | ??????###????######???????????? #????????????????? | | ?????## ##?### ## ###?###????? #????????????????? | | ????## ### ### #???? #????????????????? | | ?#### #### ##???????????????? | | ?# ## #???????????????? | | ### ###### @ #???????????????? | | ## ####### ###R #???????????????? | | # # # #### #???????????????? | | ## ## #???????????????? | | ## ""#???????????????? | | ### ## = " #??????????????? | | ### ######## < ## #??????????????? | | ## ##??????## #? #??????????????? | | #######????????##### #?? #??????????????? | | ##??????????????????## "#???#??????????????? | | #????????????????????# #####??????????????????? | | ##????????????????????# #??????????????????????? | | ##?????????????????????? ??????????????????????? | | ##???????????????????????"#??????????????????????? | | ##??????????????????????? #??????????????????????? | | ###????????????????????? ??????????????????????? | | ##????????????????????? ??????????????????????? | | #????????????????????? ??????????????????????? | | ## #???????????????????????????????????????????? | | #??? #?????????????????### ###?## ##???## ?? | | #??????????????????????"""" ### ##?## ?? | | ???????????????????????""????? ## #?# ?? | | ??????????????????????? ??" "? ### ?? | | ??????????????????????? ?" ""? ######## ?? | | ??????????????????????? ? " ?? #???## ##?? | +----------------------------------------------------+ Best States ------------- Heat Dissipation 35 Energy Generation 15 Energy Capacity 250 Matter Stores 300 Matter Capacity 300 Sight Range 16 Terrain Scan Range 16 Terrain Scan Density 10 Armor Coverage 150 Evasion (%) 55 Item Schematics ----------------- None Robot Schematics ------------------ None Fabricated ------------ Nothing Repaired ---------- Nothing Studied --------- None Alien Tech Used ----------------- None Achievements -------------- None Challenges ------------ None Game ------ Seed GhostCannonPlatform Manual? 0 Play Time 00:25:23 Cumulative 774.5 hours Start 2025.12.05 @ 03:35:04 End 2025.12.05 @ 04:00:00 Sessions 1 Manual Loads 0 Difficulty Rogue Special Mode None Game No. 535 Rogue 535 Adventurer 0 Explorer 0 Win Type - Total 1 Types 1/0/0/0/0/0/0/0/0/0 Lore% 76 Gallery% 70 Achievement% 50 Wizard Run 0 Options --------- Layout 1 ASCII 0 Keyboard 0 Movement Mouse Keybinds 0 Fullscreen 1 Font 20/SmallcapsGlow Map View 54x42 Zoom Use 0% Tactical HUD 1 Map Filters NONE Filters NONE Steam 1 RUN: a2c60453-4f5f-4dc5-8b9e-fd6f263e8ffa